fUST/lending_fUST_20250624
["ID","MTS","AMOUNT","RATE_DAILY","PERIOD"]
[367277178,1750727443313,-460.0,0.00019835,2]
[367277180,1750727443321,-460.0,0.00019835,2]
[367277182,1750727443331,-315.6343228,0.00019946,2]
[367277184,1750727443340,-500.0,0.00019955,2]
[367277186,1750727443348,-500.0,0.00019955,2]
[367277188,1750727443358,-500.0,0.00019962,2]
[367277190,1750727443367,-485.83242567,0.00019962,2]
[367277192,1750727443376,-500.0,0.00019962,2]
[367277194,1750727443385,-500.0,0.00019962,2]
[367277196,1750727443394,-500.0,0.00019962,2]
[367277198,1750727443403,-360.03597002,0.00019972,2]
[367277200,1750727443413,-1595.729252,0.00019983,2]
[367277202,1750727443422,-788.31885558,0.00019984,2]
[367277204,1750727443431,-100000.0,0.0001999,2]
[367277206,1750727443442,-158.9019424,0.0002,2]
[367277208,1750727443451,-573.8932911,0.0002,2]
[367277210,1750727443461,-1000.0,0.0002,2]
[367277212,1750727443470,-160.0,0.0002,3]
[367277214,1750727443479,-160.0,0.0002,3]
[367277216,1750727443488,-830.0,0.00020003,2]
[367277218,1750727443498,-830.0,0.00020035,2]
[367277220,1750727443507,-830.0,0.00020036,2]
[367277222,1750727443517,-153.0,0.00020082,2]
[367277224,1750727443526,-153.0,0.00020082,2]
[367277226,1750727443536,-153.0,0.00020082,2]
[367277228,1750727443545,-153.0,0.00020082,2]
[367277230,1750727443555,-183.879334,0.00020082,2]
[367277232,1750727443565,-5000.0,0.00020085,2]
[367277234,1750727443575,-1000.0,0.000201,3]
[367277236,1750727443586,-460.0,0.000201,2]
[367277238,1750727443598,-460.0,0.000201,2]
[367277240,1750727443607,-460.0,0.00020101,2]
[367277242,1750727443616,-460.0,0.00020101,2]
[367277244,1750727443626,-460.0,0.00020101,2]
[367277245,1750727443635,-425.64473825,0.00020101,2]
[367277248,1750727443645,-1907.0,0.00020101,2]
[367277249,1750727443654,-2059.76,0.00020101,2]
[367277251,1750727443664,-2313.99,0.00020103,2]
[367277253,1750727443674,-789.06,0.00020103,2]
[367277255,1750727443684,-1457.63,0.00020103,2]
[367277257,1750727443694,-460.0,0.00020103,2]
[367277259,1750727443703,-1755.96,0.00020103,2]
[367277261,1750727443713,-3143.29,0.00020103,2]
[367277263,1750727443722,-460.0,0.00020103,2]
[367277265,1750727443731,-996.62,0.00020103,2]
[367277267,1750727443741,-530.52,0.00020103,2]
[367277269,1750727443751,-900.85,0.00020103,2]
[367277271,1750727443760,-2389.78,0.00020103,2]
[367277273,1750727443769,-708.95,0.00020103,2]
[367277275,1750727443778,-495.81,0.00020103,2]
[367277277,1750727443789,-585.34,0.00020103,2]
[367277279,1750727443798,-395.25130378,0.00020104,2]
[367277281,1750727443808,-465.88,0.00020104,2]
[367277283,1750727443817,-460.0,0.00020104,2]
[367277284,1750727443827,-581.59,0.00020104,2]
[367277285,1750727443837,-460.0,0.00020104,2]
[367277286,1750727443846,-460.0,0.00020104,2]
[367277287,1750727443855,-227.51702956,0.00020104,2]
[367277288,1750727443864,-460.0,0.00020104,2]
[367277289,1750727443874,-875.07,0.00020104,2]
[367277290,1750727443967,-657.45,0.00020104,2]
[367277291,1750727443985,-460.0,0.00020104,2]
[367277292,1750727443995,-460.0,0.00020104,2]
[367277293,1750727444005,-460.0,0.00020104,2]
[367277294,1750727444014,-460.0,0.00020104,2]
[367277295,1750727444023,-507.16,0.00020104,2]
[367277297,1750727444033,-460.0,0.00020104,2]
[367277299,1750727444042,-475.78,0.00020104,2]
[367277301,1750727444054,-460.0,0.00020104,2]
[367277303,1750727444063,-564.21,0.00020104,2]
[367277305,1750727444072,-460.0,0.00020104,2]
[367277307,1750727444081,-460.0,0.00020104,2]
[367277309,1750727444090,-460.0,0.00020104,2]
[367277311,1750727444099,-915.53,0.00020104,2]
[367277313,1750727444108,-460.0,0.00020104,2]
[367277315,1750727444117,-460.0,0.00020104,2]
[367277317,1750727444127,-668.45,0.00020104,2]
[367277319,1750727444137,-553.83,0.00020104,2]
[367277321,1750727444146,-491.15,0.00020104,2]
[367277323,1750727444156,-699.29,0.00020104,2]
[367277325,1750727444165,-460.0,0.00020104,2]
[367277327,1750727444174,-503.71,0.00020104,2]
[367277329,1750727444184,-805.46,0.00020104,2]
[367277331,1750727444193,-460.0,0.00020104,2]
[367277333,1750727444203,-995.84,0.00020104,2]
[367277335,1750727444212,-460.0,0.00020106,2]
[367277337,1750727444222,-460.0,0.00020106,2]
[367277339,1750727444231,-460.0,0.00020106,2]
[367277341,1750727444241,-460.0,0.00020106,2]
[367277343,1750727444250,-2333.15,0.00020106,2]
[367277345,1750727444260,-5576.64,0.00020106,2]
[367277347,1750727444269,-460.0,0.00020106,2]
[367277349,1750727444278,-2070.7,0.00020106,2]
[367277351,1750727444288,-460.0,0.00020106,2]
[367277353,1750727444297,-602.09,0.00020106,2]
[367277355,1750727444306,-623.19,0.00020106,2]
[367277357,1750727444315,-3245.27,0.00020106,2]
[367277359,1750727444323,-746.98,0.00020106,2]
[367277361,1750727444333,-460.0,0.00020106,2]
[367277363,1750727444343,-2206.72,0.00020106,2]
[367277365,1750727444352,-831.87,0.00020106,2]
[367277367,1750727444362,-460.0,0.00020107,2]
[367277369,1750727444371,-460.0,0.00020107,2]
[367277371,1750727444380,-460.0,0.00020107,2]
[367277373,1750727444389,-460.0,0.00020107,2]
[367277375,1750727444398,-597.99,0.00020107,2]
[367277377,1750727444407,-460.0,0.00020107,2]
[367277379,1750727444417,-588.95,0.00020107,2]
[367277381,1750727444426,-460.0,0.00020107,2]
[367277383,1750727444435,-659.41,0.00020107,2]
[367277385,1750727444445,-598.72,0.00020107,2]
[367277387,1750727444454,-460.0,0.00020107,2]
[367277389,1750727444463,-713.01,0.00020107,2]
[367277391,1750727444472,-460.0,0.00020107,2]
[367277393,1750727444481,-460.0,0.00020107,2]
[367277395,1750727444491,-460.0,0.00020107,2]
[367277397,1750727444500,-465.33,0.00020107,2]
[367277399,1750727444509,-460.0,0.00020107,2]
[367277401,1750727444518,-1349.9,0.00020107,2]
[367277403,1750727444527,-517.75,0.00020107,2]
[367277405,1750727444536,-460.0,0.00020107,2]
[367277407,1750727444545,-1112.74,0.00020107,2]
[367277409,1750727444555,-1141.12,0.00020107,2]
[367277411,1750727444564,-460.0,0.00020108,2]
[367277413,1750727444574,-537.1,0.00020108,2]
[367277415,1750727444585,-460.0,0.00020108,2]
[367277417,1750727444596,-460.0,0.00020108,2]
[367277419,1750727444605,-460.0,0.00020108,2]
[367277421,1750727444614,-460.0,0.00020108,2]
[367277423,1750727444624,-460.0,0.00020108,2]
[367277425,1750727444634,-460.0,0.00020108,2]
[367277427,1750727444644,-460.0,0.00020108,2]
[367277429,1750727444653,-460.0,0.00020108,2]
[367277431,1750727444663,-460.0,0.00020108,2]
[367277433,1750727444672,-2183.59,0.00020108,2]
[367277435,1750727444682,-460.0,0.00020108,2]
[367277437,1750727444692,-460.0,0.00020109,2]
[367277439,1750727444701,-460.0,0.00020109,2]
[367277441,1750727444710,-507.40665143,0.00020109,2]
[367277443,1750727444719,-460.0,0.00020109,2]
[367277445,1750727444730,-460.0,0.00020109,2]
[367277447,1750727444741,-460.0,0.00020109,2]
[367277449,1750727444752,-194.48531335,0.00020109,2]
[367277451,1750727444762,-460.0,0.00020109,2]
[367277453,1750727444771,-460.0,0.00020109,2]
[367277455,1750727444781,-500.0,0.00020137,2]
[367277457,1750727444791,-500.0,0.00020169,2]
[367277459,1750727444800,-165.801207,0.0002017,2]
[367277461,1750727444810,-165.801207,0.0002017,2]
[367277463,1750727444819,-483.723537,0.0002017,2]
[367277465,1750727444829,-483.723537,0.0002017,2]
[367277467,1750727444839,-460.838078,0.00020187,2]
[367277470,1750727444854,-500.0,0.00020189,2]
[367277473,1750727444872,-153.0,0.000202,2]
[367277475,1750727444885,-161.14593096,0.00020229,2]
[367277478,1750727444899,-500.0,0.00020244,2]
[367277481,1750727444913,-2531.1143921,0.00020265,2]
[367277483,1750727444929,-1046.73628909,0.00020269,2]
[367277486,1750727444943,-290.76639175,0.00020269,2]
[367277489,1750727444958,-315790.96021562,0.00020269,2]
[367277542,1750727445671,-0.00685818,0.00019277,2]
[367277545,1750727445684,-311.13472272,0.00019277,2]
[367277547,1750727445696,-188.8584191,0.00019277,2]
[367277549,1750727445706,-428.18,0.00019281,2]
[367277551,1750727445716,-460.0,0.00019284,2]
[367277553,1750727445726,-460.0,0.00019558,2]
[367277578,1750727445949,-460.0,0.00019832,2]
[367277580,1750727445965,-460.0,0.00020106,2]
[367277582,1750727445975,-4107.42179145,0.00020269,2]
[367277606,1750727446193,-460.0,0.00019282,2]
[367277608,1750727446202,-357.01010509,0.00019282,2]
[367277610,1750727446211,-27.79983091,0.00019556,2]
[367277613,1750727446223,-432.20016909,0.00019556,2]
[367277615,1750727446232,-98.77410521,0.00020269,2]
[367277617,1750727446248,-2978.30772486,0.00020269,2]
[367277619,1750727446259,-13907.46852132,0.00020269,2]
[367277638,1750727446427,-318.69349186,0.00019283,2]
[367277640,1750727446437,-571.59431699,0.00019283,2]
[367277642,1750727446446,-571.59431699,0.00019283,2]
[367277645,1750727446455,-571.59431699,0.00019283,2]
[367277647,1750727446464,-571.59431699,0.00019283,2]
[367277649,1750727446473,-571.59431699,0.00019283,2]
[367277651,1750727446483,-571.59431699,0.00019283,2]
[367277653,1750727446493,-571.59431699,0.00019283,2]
[367277655,1750727446502,-506.95296881,0.0001983,2]
[367277657,1750727446511,-2258.1588934,0.00020269,2]
[367277659,1750727446523,-9426.1222506,0.00020269,2]
[367278587,1750727455813,-160.0,0.00019178,2]
[367282044,1750727758448,-193.595237,0.00019178,2]
[367282045,1750727758473,-42.87888245,0.00019179,2]
[367282046,1750727770963,5812.57096019,0.00018263,2]
[367282047,1750727770986,19087.42903981,0.00018263,2]
[367282048,1750727771583,-168.463362,0.00019179,2]
[367282049,1750727795921,800.0,0.00018976,2]
[367282050,1750728061981,414.75427,0.00013699,2]
[367282052,1750728307083,-300.0,0.00019102,2]
[367282053,1750728339113,-4202.0,0.00019102,2]
[367282054,1750728424719,-26.0,0.00019102,2]
[367282055,1750728424741,-160.25199678,0.00019172,2]
[367282056,1750728436864,-480.03534903,0.00019172,2]
[367282057,1750728436884,-175.29521816,0.00019178,2]
[367282058,1750728436906,-1451.36254316,0.00019183,2]
[367282061,1750728453090,-2698.63745684,0.00019183,2]
[367282062,1750728453112,-300.0,0.00019185,2]
[367282063,1750728453133,-300.0,0.00019186,2]
[367282064,1750728453154,-300.0,0.00019186,2]
[367282065,1750728453178,-1200.0,0.00019186,2]
[367282066,1750728453199,-300.0,0.00019187,2]
[367282067,1750728453221,-4150.0,0.00019188,2]
[367282068,1750728453242,-3419.65012665,0.00019266,2]
[367282069,1750728453264,-207.4,0.00019266,2]
[367282070,1750728453285,-1688.0,0.00019266,2]
[367282071,1750728453305,-151.0,0.00019266,2]
[367282072,1750728453326,-439.03,0.00019269,3]
[367282073,1750728453347,-219.51,0.00019269,3]
[367282074,1750728453368,-94.39539381,0.00019269,3]
[367282075,1750728465950,-162.70413865,0.00019178,2]
[367282077,1750728517522,2451.7422395,0.00026174,120]
[367282091,1750728573116,4697.81669019,0.000191,2]
[367282092,1750728573144,1537.18330981,0.000191,2]
[367282098,1750728632318,-521.13553475,0.0001911,2]
[367282099,1750728632327,-190.31142535,0.00019178,2]
[367282101,1750728632336,-156.94745924,0.00019266,2]
[367282102,1750728632345,-207.4,0.00019266,2]
[367282104,1750728632354,-500.0,0.00019266,2]
[367282106,1750728632363,-414.79806309,0.00019266,2]
[367282108,1750728632372,-500.0,0.00019266,2]
[367282110,1750728632381,-500.0,0.00019266,2]
[367282112,1750728632390,-500.0,0.00019266,2]
[367282114,1750728632399,-500.0,0.00019266,2]
[367282116,1750728632408,-500.0,0.00019266,2]
[367282118,1750728632417,-246.80394775,0.00019266,2]
[367282123,1750728632436,-253.19605225,0.00019266,2]
[367282124,1750728632445,-500.0,0.00019266,2]
[367282126,1750728632454,-500.0,0.00019266,2]
[367282127,1750728632462,-500.0,0.00019266,2]
[367282129,1750728632471,-5000.0,0.00019266,2]
[367282131,1750728632480,-500.0,0.00019266,2]
[367282133,1750728632489,-300.0,0.00019269,2]
[367282135,1750728632498,-300.0,0.00019269,2]
[367282137,1750728632506,-1200.0,0.00019269,2]
[367282138,1750728632515,-564.17460619,0.00019269,3]
[367282139,1750728632524,-460.0,0.0001927,2]
[367282140,1750728632534,-460.0,0.0001927,2]
[367282141,1750728632543,-460.0,0.0001927,2]
[367282142,1750728632551,-1589.17,0.0001927,2]
[367282143,1750728632560,-460.0,0.0001927,2]
[367282144,1750728632568,-1723.54,0.0001927,2]
[367282145,1750728632577,-3339.66616478,0.0001927,2]
[367282146,1750728632586,-1756.11,0.00019272,3]
[367282147,1750728632594,-878.05,0.00019272,3]
[367282148,1750728632603,-266.29826197,0.00019275,2]
[367282149,1750728632612,-190.30390612,0.00019275,2]
[367282150,1750728632620,-299.98895214,0.00019275,2]
[367282151,1750728632629,-240.62284122,0.00019275,2]
[367282152,1750728632638,-460.0,0.00019275,2]
[367282153,1750728632647,-460.0,0.00019275,2]
[367282154,1750728632656,-460.0,0.00019275,2]
[367282155,1750728632665,-152.68933669,0.00019275,2]
[367282156,1750728632673,-460.0,0.00019275,2]
[367282157,1750728632682,-460.0,0.00019275,2]
[367282158,1750728632690,-460.0,0.00019275,2]
[367282159,1750728632699,-460.0,0.00019275,2]
[367282160,1750728632707,-460.0,0.00019275,2]
[367282161,1750728632716,-460.0,0.00019275,2]
[367282162,1750728632725,-460.0,0.00019275,2]
[367282163,1750728632733,-462.64180037,0.00019275,2]
[367282164,1750728632742,-468.68833564,0.00019275,2]
[367282165,1750728632751,-463.40742593,0.00019275,2]
[367282166,1750728632759,-460.0,0.00019276,2]
[367282167,1750728632768,-460.0,0.00019276,2]
[367282168,1750728632777,-460.0,0.00019276,2]
[367282169,1750728632786,-460.0,0.00019276,2]
[367282170,1750728632795,-460.0,0.00019276,2]
[367282171,1750728632808,-460.0,0.00019276,2]
[367282172,1750728632817,-460.0,0.00019276,2]
[367282173,1750728632825,-460.0,0.00019276,2]
[367282174,1750728632834,-460.0,0.00019276,2]
[367282175,1750728632843,-463.65,0.00019276,2]
[367282176,1750728632851,-460.0,0.00019276,2]
[367282177,1750728632860,-460.0,0.00019276,2]
[367282178,1750728632869,-460.0,0.00019276,2]
[367282179,1750728632877,-460.0,0.00019276,2]
[367282180,1750728632886,-460.0,0.00019276,2]
[367282181,1750728632896,-454.64945158,0.00019276,2]
[367282182,1750728632905,-460.0,0.00019276,2]
[367282183,1750728632914,-460.0,0.00019276,2]
[367282184,1750728632923,-460.0,0.00019276,2]
[367282185,1750728632932,-462.32,0.00019276,2]
[367282186,1750728632941,-460.0,0.00019276,2]
[367282187,1750728632950,-460.0,0.00019276,2]
[367282188,1750728632959,-1957.68,0.00019276,2]
[367282189,1750728632969,-460.0,0.00019276,2]
[367282190,1750728632978,-520.42,0.00019276,2]
[367282191,1750728632987,-460.0,0.00019276,2]
[367282192,1750728632996,-657.55,0.00019276,2]
[367282193,1750728633006,-379.00468114,0.00019276,2]
[367282194,1750728633156,-460.0,0.00019276,2]
[367282195,1750728633165,-460.0,0.00019276,2]
[367282196,1750728633175,-460.0,0.00019276,2]
[367282197,1750728633184,-460.0,0.00019276,2]
[367282198,1750728633193,-460.0,0.00019276,2]
[367282199,1750728633202,-460.0,0.00019276,2]
[367282200,1750728633212,-460.0,0.00019276,2]
[367282201,1750728633221,-460.0,0.00019276,2]
[367282202,1750728633230,-460.0,0.00019276,2]
[367282203,1750728633239,-87.02018439,0.00019276,2]
[367282204,1750728638358,-327.79374503,0.00019275,2]
[367282205,1750728638371,-138.82096458,0.00019275,2]
[367282206,1750728638379,-372.97981561,0.00019276,2]
[367282207,1750728638388,-460.0,0.00019276,2]
[367282208,1750728638398,-460.0,0.00019276,2]
[367282209,1750728638407,-1463.3,0.00019276,2]
[367282210,1750728638416,-509.03752782,0.00019276,2]
[367282211,1750728638426,-460.0,0.00019276,2]
[367282212,1750728638435,-1236.25,0.00019276,2]
[367282213,1750728638444,-35.83050089,0.00019276,2]
[367282214,1750728638457,-464.16949911,0.00019276,2]
[367282215,1750728638466,-460.0,0.00019276,2]
[367282216,1750728638476,-500.0,0.00019276,2]
[367282217,1750728638486,-2223.75102967,0.00019276,2]
[367282218,1750728639117,160.0,0.00022196,30]
[367282265,1750728642843,-0.01237698,0.00019175,2]
[367282270,1750728643502,-589.09220062,0.00019175,2]
[367282271,1750728643512,-479.79176108,0.00019275,2]
[367282272,1750728643521,-460.0,0.00019275,2]
[367282273,1750728643533,-414.81897033,0.00019276,2]
[367282274,1750728643543,-460.0,0.00019276,2]
[367282275,1750728643552,-460.0,0.00019276,2]
[367282276,1750728643562,-460.0,0.00019276,2]
[367282277,1750728643571,-501.62,0.00019276,2]
[367282278,1750728643581,-460.0,0.00019276,2]
[367282279,1750728643591,-460.0,0.00019276,2]
[367282280,1750728643601,-849.18,0.00019276,2]
[367282281,1750728643611,-460.0,0.00019276,2]
[367282282,1750728643620,-830.52,0.00019276,2]
[367282283,1750728643630,-548.66,0.00019276,2]
[367282284,1750728643640,-460.0,0.00019276,2]
[367282285,1750728643649,-530.44,0.00019276,2]
[367282286,1750728643658,-549.22,0.00019276,2]
[367282287,1750728643668,-612.53,0.00019276,2]
[367282288,1750728643677,-460.0,0.00019276,2]
[367282289,1750728643686,-460.0,0.00019276,2]
[367282290,1750728643696,-701.31,0.00019276,2]
[367282291,1750728643705,-546.43,0.00019276,2]
[367282292,1750728643716,-460.0,0.00019276,2]
[367282293,1750728643725,-750.71,0.00019276,2]
[367282294,1750728643736,-460.0,0.00019276,2]
[367282295,1750728643745,-460.0,0.00019276,2]
[367282296,1750728643755,-460.0,0.00019276,2]
[367282297,1750728643764,-590.79,0.00019276,2]
[367282298,1750728643774,-460.0,0.00019276,2]
[367282299,1750728643783,-460.0,0.00019276,2]
[367282300,1750728643793,-460.0,0.00019276,2]
[367282301,1750728643803,-460.0,0.00019276,2]
[367282302,1750728643812,-607.83,0.00019276,2]
[367282303,1750728643821,-460.0,0.00019276,2]
[367282304,1750728643831,-213.35040464,0.00019276,2]
[367282305,1750728643841,-460.0,0.00019276,2]
[367282306,1750728643850,-460.0,0.00019276,2]
[367282307,1750728643860,-460.0,0.00019276,2]
[367282308,1750728643870,-586.65,0.00019276,2]
[367282309,1750728643879,-808.71,0.00019276,2]
[367282310,1750728643889,-461.38170254,0.00019276,2]
[367282311,1750728643899,-464.31036695,0.00019276,2]
[367282312,1750728643910,-464.44081624,0.00019276,2]
[367282313,1750728643919,-397.94177096,0.00019276,2]
[367282314,1750728643929,-578.43,0.00019276,2]
[367282315,1750728643939,-463.24660817,0.00019276,2]
[367282316,1750728643949,-460.0,0.00019276,2]
[367282317,1750728643959,-465.38475994,0.00019276,2]
[367282318,1750728643968,-460.0,0.00019276,2]
[367282319,1750728643978,-466.18705829,0.00019276,2]
[367282320,1750728643988,-461.40700486,0.00019276,2]
[367282321,1750728644108,-465.60591005,0.00019276,2]
[367282322,1750728644134,-928.19,0.00019276,2]
[367282323,1750728644144,-462.75392504,0.00019276,2]
[367282324,1750728644154,-470.45068953,0.00019276,2]
[367282325,1750728644163,-460.0,0.00019276,2]
[367282326,1750728644172,-467.19602304,0.00019276,2]
[367282327,1750728644181,-462.82058247,0.00019276,2]
[367282328,1750728644190,-426.52790849,0.00019276,2]
[367282329,1750728644199,-509.69617635,0.00019276,2]
[367282330,1750728644208,-509.69617635,0.00019276,2]
[367282331,1750728644217,-509.69617635,0.00019276,2]
[367282332,1750728644227,-509.69617635,0.00019276,2]
[367282333,1750728644236,-509.69617635,0.00019276,2]
[367282334,1750728644245,-509.69617635,0.00019276,2]
[367282335,1750728644254,-509.69617635,0.00019276,2]
[367282336,1750728644263,-509.69617635,0.00019276,2]
[367282337,1750728644272,-509.69617635,0.00019276,2]
[367282338,1750728644281,-509.69617635,0.00019276,2]
[367282339,1750728644290,-509.69617635,0.00019276,2]
[367282340,1750728644300,-509.69617635,0.00019276,2]
[367282341,1750728644309,-509.69617635,0.00019276,2]
[367282342,1750728644319,-509.69617635,0.00019276,2]
[367282343,1750728644328,-509.69617635,0.00019276,2]
[367282344,1750728644337,-509.69617635,0.00019276,2]
[367282345,1750728644347,-509.69617635,0.00019276,2]
[367282346,1750728644356,-509.69617635,0.00019276,2]
[367282347,1750728644365,-460.0,0.00019277,2]
[367282348,1750728644375,-460.0,0.00019277,2]
[367282349,1750728644394,-726.14,0.00019277,2]
[367282350,1750728644405,-460.0,0.00019277,2]
[367282351,1750728644415,-460.0,0.00019277,2]
[367282352,1750728644425,-460.0,0.00019277,2]
[367282353,1750728644435,-460.0,0.00019277,2]
[367282354,1750728644445,-440.93179543,0.00019277,2]
[367282355,1750728644455,-460.0,0.00019277,2]
[367282356,1750728644464,-460.0,0.00019277,2]
[367282357,1750728644475,-460.0,0.00019277,2]
[367282358,1750728644484,-460.0,0.00019277,2]
[367282359,1750728644494,-460.0,0.00019277,2]
[367282360,1750728644504,-639.64,0.00019277,2]
[367282361,1750728644514,-578.24,0.00019277,2]
[367282362,1750728644524,-460.0,0.00019277,2]
[367282363,1750728644535,-460.0,0.00019277,2]
[367282364,1750728644544,-533.43,0.00019277,2]
[367282365,1750728644554,-460.0,0.00019277,2]
[367282366,1750728644565,-460.0,0.00019277,2]
[367282367,1750728644575,-594.18,0.00019277,2]
[367282368,1750728644585,-544.7,0.00019277,2]
[367282369,1750728644597,-460.0,0.00019277,2]
[367282370,1750728644607,-532.82,0.00019277,2]
[367282371,1750728644617,-460.0,0.00019277,2]
[367282372,1750728644626,-460.0,0.00019277,2]
[367282373,1750728644636,-2257.98,0.00019277,2]
[367282374,1750728644647,-460.0,0.00019277,2]
[367282375,1750728644657,-587.82,0.00019277,2]
[367282376,1750728644666,-1124.92,0.00019277,2]
[367282377,1750728644678,-460.0,0.00019277,2]
[367282378,1750728644688,-500.0,0.00019277,2]
[367282379,1750728644698,-460.0,0.00019277,2]
[367282380,1750728644709,-2039.6,0.00019277,2]
[367282381,1750728644718,-460.0,0.00019277,2]
[367282382,1750728644728,-927.28,0.00019277,2]
[367282383,1750728644738,-460.0,0.00019277,2]
[367282384,1750728644748,-2916.76,0.00019277,2]
[367282385,1750728644758,-460.0,0.00019277,2]
[367282386,1750728644768,-460.0,0.00019277,2]
[367282387,1750728644778,-1899.56,0.00019277,2]
[367282388,1750728644788,-460.0,0.00019277,2]
[367282389,1750728644798,-460.0,0.00019278,2]
[367282390,1750728644808,-460.0,0.00019278,2]
[367282391,1750728644818,-460.0,0.00019278,2]
[367282392,1750728644828,-544.33,0.00019278,2]
[367282393,1750728644838,-460.0,0.00019278,2]
[367282394,1750728644847,-460.0,0.00019278,2]
[367282395,1750728644857,-460.0,0.00019278,2]
[367282396,1750728644867,-526.76,0.00019278,2]
[367282397,1750728644877,-460.0,0.00019278,2]
[367282398,1750728644887,-460.0,0.00019278,2]
[367282399,1750728644897,-460.0,0.00019278,2]
[367282400,1750728644907,-460.0,0.00019278,2]
[367282401,1750728644917,-460.0,0.00019278,2]
[367282402,1750728644927,-460.0,0.00019278,2]
[367282403,1750728644936,-460.0,0.00019278,2]
[367282404,1750728644946,-460.0,0.00019278,2]
[367282405,1750728644956,-460.0,0.00019278,2]
[367282406,1750728644965,-510.67,0.00019278,2]
[367282407,1750728644975,-460.0,0.00019278,2]
[367282408,1750728644985,-460.0,0.00019278,2]
[367282409,1750728644994,-495.61,0.00019278,2]
[367282410,1750728645003,-460.0,0.00019278,2]
[367282411,1750728645013,-460.0,0.00019278,2]
[367282412,1750728645023,-460.0,0.00019278,2]
[367282413,1750728645033,-460.0,0.00019278,2]
[367282414,1750728645043,-460.0,0.00019278,2]
[367282415,1750728645054,-460.0,0.00019278,2]
[367282416,1750728645063,-460.0,0.00019278,2]
[367282417,1750728645075,-460.0,0.00019278,2]
[367282418,1750728645084,-300.0,0.00019278,2]
[367282419,1750728645093,-460.0,0.00019278,2]
[367282420,1750728645101,-460.0,0.00019278,2]
[367282421,1750728645111,-460.0,0.00019278,2]
[367282422,1750728645120,-460.0,0.00019278,2]
[367282423,1750728645129,-460.0,0.00019278,2]
[367282424,1750728645139,-460.0,0.00019278,2]
[367282425,1750728645151,-460.0,0.00019278,2]
[367282426,1750728645162,-460.0,0.00019278,2]
[367282427,1750728645171,-585.51,0.00019278,2]
[367282428,1750728645181,-460.0,0.00019278,2]
[367282429,1750728645191,-460.0,0.00019278,2]
[367282430,1750728645200,-288.99757411,0.00019278,2]
[367282431,1750728645209,-460.0,0.00019278,2]
[367282432,1750728645218,-588.15,0.00019278,2]
[367282433,1750728645228,-460.0,0.00019278,2]
[367282434,1750728645237,-460.0,0.00019278,2]
[367282435,1750728645247,-460.0,0.00019278,2]
[367282436,1750728645257,-460.0,0.00019278,2]
[367282437,1750728645266,-460.0,0.00019278,2]
[367282438,1750728645276,-460.0,0.00019278,2]
[367282439,1750728645285,-460.0,0.00019278,2]
[367282440,1750728645294,-460.0,0.00019278,2]
[367282441,1750728645304,-460.0,0.00019278,2]
[367282442,1750728645314,-460.0,0.00019278,2]
[367282443,1750728645323,-460.0,0.00019278,2]
[367282444,1750728645333,-460.0,0.00019278,2]
[367282445,1750728645343,-460.0,0.00019278,2]
[367282446,1750728645353,-460.0,0.00019278,2]